fUST/lending_fUST_20250113
["ID","MTS","AMOUNT","RATE_DAILY","PERIOD"]
[348655047,1736700644808,-500.0,0.00020821,3]
[348655049,1736700644818,-896.93,0.00020821,2]
[348655051,1736700644827,-791.78,0.00020821,3]
[348655053,1736700644836,-1024.79,0.00020821,3]
[348655055,1736700644847,-500.0,0.00020821,3]
[348655057,1736700644856,-500.0,0.00020821,3]
[348655059,1736700644865,-515.31,0.00020821,3]
[348655061,1736700644875,-1322.71,0.00020821,3]
[348655063,1736700644885,-500.0,0.00020821,3]
[348655065,1736700644895,-500.0,0.00020821,3]
[348655067,1736700644904,-603.68,0.00020821,3]
[348655068,1736700644913,-500.0,0.00020821,2]
[348655070,1736700644922,-779.37162534,0.00020821,3]
[348655073,1736700644935,-7718.24837466,0.00020821,3]
[348655075,1736700644945,-500.0,0.00020821,3]
[348655076,1736700644953,-500.0,0.00020821,3]
[348655079,1736700644963,-500.0,0.00020821,3]
[348655081,1736700644972,-500.0,0.00020821,3]
[348655083,1736700644981,-2381.04,0.00020821,3]
[348655085,1736700644990,-500.0,0.00020821,3]
[348655086,1736700645000,-500.0,0.00020821,3]
[348655087,1736700645010,-500.0,0.00020821,3]
[348655088,1736700645019,-769.71,0.00020821,3]
[348655090,1736700645028,-500.0,0.00020821,3]
[348655092,1736700645037,-631.69,0.00020821,3]
[348655094,1736700645047,-869.09990359,0.00020946,2]
[348655096,1736700645055,-500.0,0.00021095,3]
[348655097,1736700645064,-500.0,0.00021095,3]
[348655098,1736700645074,-896.93,0.00021095,2]
[348655100,1736700645083,-791.78,0.00021095,3]
[348655102,1736700645092,-1024.79,0.00021095,3]
[348655104,1736700645101,-500.0,0.00021095,3]
[348655106,1736700645115,-500.0,0.00021095,3]
[348655109,1736700645124,-515.31,0.00021095,3]
[348655110,1736700645134,-1322.71,0.00021095,3]
[348655112,1736700645143,-500.0,0.00021095,3]
[348655114,1736700645153,-500.0,0.00021095,3]
[348655116,1736700645162,-603.68,0.00021095,3]
[348655118,1736700645171,-500.0,0.00021095,2]
[348655120,1736700645182,-8497.62,0.00021095,3]
[348655123,1736700645192,-500.0,0.00021095,3]
[348655125,1736700645201,-175.44,0.00021095,3]
[348655128,1736700645211,-500.0,0.00021095,3]
[348655130,1736700645221,-500.0,0.00021095,3]
[348655132,1736700645230,-2381.04,0.00021095,3]
[348655134,1736700645240,-500.0,0.00021095,3]
[348655135,1736700645249,-769.71,0.00021095,3]
[348655137,1736700645259,-500.0,0.00021095,3]
[348655139,1736700645268,-631.69,0.00021095,3]
[348655141,1736700645278,-373.475621,0.00021322,2]
[348655143,1736700645287,-500.0,0.00021369,3]
[348655145,1736700645297,-500.0,0.00021369,3]
[348655147,1736700645306,-896.93,0.00021369,2]
[348655149,1736700645316,-791.78,0.00021369,3]
[348655152,1736700645325,-1024.79,0.00021369,3]
[348655155,1736700645334,-500.0,0.00021369,3]
[348655157,1736700645344,-500.0,0.00021369,3]
[348655159,1736700645355,-515.31,0.00021369,3]
[348655161,1736700645364,-1322.71,0.00021369,3]
[348655163,1736700645374,-199.56322868,0.00021369,3]
[348655165,1736700645384,-500.0,0.00021369,3]
[348655167,1736700645393,-603.68,0.00021369,3]
[348655170,1736700645403,-500.0,0.00021369,2]
[348655171,1736700645412,-8497.62,0.00021369,3]
[348655174,1736700645422,-500.0,0.00021369,3]
[348655176,1736700645432,-500.0,0.00021369,3]
[348655178,1736700645441,-500.0,0.00021369,3]
[348655179,1736700645451,-2381.04,0.00021369,3]
[348655181,1736700645461,-769.71,0.00021369,3]
[348655183,1736700645470,-631.69,0.00021369,3]
[348655185,1736700645479,-372.0,0.000215,9]
[348655187,1736700645489,-587.0,0.00021604,2]
[348655189,1736700645498,-869.09990359,0.00021616,2]
[348655191,1736700645507,-11294.5531873,0.00021627,2]
[348655193,1736700645516,-500.0,0.00021643,3]
[348655195,1736700645526,-500.0,0.00021643,3]
[348655197,1736700645535,-896.93,0.00021643,2]
[348655199,1736700645546,-791.78,0.00021643,3]
[348655201,1736700645555,-1024.79,0.00021643,3]
[348655203,1736700645564,-500.0,0.00021643,3]
[348655205,1736700645573,-500.0,0.00021643,3]
[348655206,1736700645582,-515.31,0.00021643,3]
[348655207,1736700645591,-1322.71,0.00021643,3]
[348655208,1736700645602,-500.0,0.00021643,3]
[348655209,1736700645611,-603.68,0.00021643,3]
[348655210,1736700645620,-500.0,0.00021643,2]
[348655211,1736700645630,-8497.62,0.00021643,3]
[348655212,1736700645639,-500.0,0.00021643,3]
[348655213,1736700645654,-500.0,0.00021643,3]
[348655214,1736700645663,-500.0,0.00021643,3]
[348655215,1736700645673,-2381.04,0.00021643,3]
[348655216,1736700645682,-769.71,0.00021643,3]
[348655217,1736700645691,-631.69,0.00021643,3]
[348655218,1736700645701,-541.449,0.0002173,2]
[348655219,1736700645711,-353.2648614,0.00021781,2]
[348655220,1736700645720,-353.2648614,0.00021781,2]
[348655221,1736700645730,-353.2648614,0.00021781,2]
[348655222,1736700645740,-353.2648614,0.00021781,2]
[348655223,1736700645749,-11294.5531873,0.0002184,2]
[348655224,1736700645758,-500.0,0.00021917,3]
[348655225,1736700645768,-500.0,0.00021917,3]
[348655226,1736700645777,-896.93,0.00021917,2]
[348655227,1736700645788,-791.78,0.00021917,3]
[348655228,1736700645797,-1024.79,0.00021917,3]
[348655229,1736700645810,-500.0,0.00021917,3]
[348655230,1736700645819,-500.0,0.00021917,3]
[348655231,1736700645829,-515.31,0.00021917,3]
[348655232,1736700645838,-1322.71,0.00021917,3]
[348655233,1736700645847,-500.0,0.00021917,3]
[348655234,1736700645857,-603.68,0.00021917,3]
[348655236,1736700645867,-528.73,0.00021917,2]
[348655238,1736700645876,-8497.62,0.00021917,3]
[348655240,1736700645886,-500.0,0.00021917,3]
[348655242,1736700645896,-500.0,0.00021917,3]
[348655244,1736700645906,-500.0,0.00021917,3]
[348655246,1736700645915,-2381.04,0.00021917,3]
[348655247,1736700645925,-769.71,0.00021917,3]
[348655249,1736700645934,-631.69,0.00021917,3]
[348655251,1736700645944,-11294.5531873,0.00021918,2]
[348655253,1736700645955,-600.0,0.00021955,2]
[348655255,1736700645964,-4924.35,0.00022,4]
[348655257,1736700645973,-712.25288264,0.0002202,2]
[348655259,1736700645983,-213.5522929,0.00022055,2]
[348655261,1736700645993,-458.8926588,0.00022055,2]
[348655263,1736700646002,-214.8637861,0.00022055,2]
[348655265,1736700646011,-153.8922372,0.00022055,2]
[348655267,1736700646021,-214.8637861,0.00022055,2]
[348655269,1736700646030,-153.8922372,0.00022055,2]
[348655271,1736700646040,-153.8922372,0.00022055,2]
[348655273,1736700646049,-214.8637861,0.00022055,2]
[348655275,1736700646059,-373.475621,0.00022084,2]
[348655277,1736700646068,-1018.37117836,0.00022184,2]
[348655279,1736700646077,-2500.0,0.00022191,2]
[348655281,1736700646087,-500.0,0.00022191,3]
[348655283,1736700646097,-500.0,0.00022191,3]
[348655285,1736700646110,-896.93,0.00022191,2]
[348655287,1736700646119,-791.78,0.00022191,3]
[348655289,1736700646128,-1024.79,0.00022191,3]
[348655291,1736700646137,-500.0,0.00022191,3]
[348655293,1736700646147,-500.0,0.00022191,3]
[348655295,1736700646156,-515.31,0.00022191,3]
[348655297,1736700646165,-1322.71,0.00022191,3]
[348655299,1736700646175,-500.0,0.00022191,3]
[348655301,1736700646184,-603.68,0.00022191,3]
[348655303,1736700646194,-8497.62,0.00022191,3]
[348655305,1736700646204,-500.0,0.00022191,3]
[348655307,1736700646213,-500.0,0.00022191,3]
[348655309,1736700646223,-500.0,0.00022191,3]
[348655311,1736700646235,-2381.04,0.00022191,3]
[348655313,1736700646244,-769.71,0.00022191,3]
[348655315,1736700646254,-631.69,0.00022191,3]
[348655317,1736700646264,-57527.68228311,0.00022222,10]
[348655319,1736700646273,-869.09990359,0.00022285,2]
[348655321,1736700646284,-2000.0,0.000223,2]
[348655323,1736700646293,-151.0,0.00022465,7]
[348655326,1736700646303,-151.0,0.00022465,7]
[348655327,1736700646314,-298.009233,0.00022465,2]
[348655329,1736700646323,-298.009233,0.00022465,2]
[348655332,1736700646333,-151.0,0.00022465,7]
[348655333,1736700646342,-500.0,0.00022465,3]
[348655335,1736700646353,-500.0,0.00022465,3]
[348655337,1736700646362,-896.93,0.00022465,2]
[348655339,1736700646371,-791.78,0.00022465,3]
[348655341,1736700646380,-1024.79,0.00022465,3]
[348655343,1736700646389,-500.0,0.00022465,3]
[348655345,1736700646399,-500.0,0.00022465,3]
[348655347,1736700646408,-515.31,0.00022465,3]
[348655349,1736700646417,-1322.71,0.00022465,3]
[348655351,1736700646427,-500.0,0.00022465,3]
[348655353,1736700646436,-603.68,0.00022465,3]
[348655355,1736700646446,-8497.62,0.00022465,3]
[348655357,1736700646456,-500.0,0.00022465,3]
[348655359,1736700646465,-500.0,0.00022465,3]
[348655361,1736700646475,-500.0,0.00022465,3]
[348655363,1736700646484,-2381.04,0.00022465,3]
[348655365,1736700646494,-769.71,0.00022465,3]
[348655367,1736700646503,-631.69,0.00022465,3]
[348655369,1736700646513,-155.0434598,0.00022603,2]
[348655371,1736700646522,-18786.96451838,0.00022641,2]
[348655373,1736700646532,-151.0,0.00022739,7]
[348655375,1736700646541,-324.170606,0.00022739,7]
[348655377,1736700646550,-324.170606,0.00022739,7]
[348655379,1736700646559,-151.0,0.00022739,7]
[348655382,1736700646570,-500.0,0.00022739,3]
[348655384,1736700646579,-500.0,0.00022739,3]
[348655386,1736700646589,-896.93,0.00022739,2]
[348655387,1736700646598,-791.78,0.00022739,3]
[348655389,1736700646607,-1024.79,0.00022739,3]
[348655391,1736700646616,-496.15566703,0.00022739,3]
[348655393,1736700646626,-500.0,0.00022739,3]
[348655395,1736700646635,-515.31,0.00022739,3]
[348655397,1736700646645,-1322.71,0.00022739,3]
[348655399,1736700646654,-500.0,0.00022739,3]
[348655401,1736700646664,-603.68,0.00022739,3]
[348655403,1736700646673,-8497.62,0.00022739,3]
[348655405,1736700646682,-400.39755988,0.00022739,3]
[348655407,1736700646692,-516.68863715,0.00022739,3]
[348655410,1736700646702,-500.0,0.00022739,3]
[348655411,1736700646711,-2381.04,0.00022739,3]
[348655413,1736700646720,-769.71,0.00022739,3]
[348655415,1736700646729,-631.69,0.00022739,3]
[348655417,1736700646738,-353.2648614,0.0002274,2]
[348655419,1736700646747,-353.2648614,0.0002274,2]
[348655421,1736700646758,-270.7589831,0.0002274,2]
[348655424,1736700646768,-2000.0,0.000228,2]
[348655434,1736700646860,-15773.37334705,0.0002287,2]
[348655437,1736700646874,-6163.67799355,0.0002287,2]
[348655450,1736700646986,-500.0,0.00019178,2]
[348655452,1736700646995,-341.19101884,0.00019178,2]
[348658117,1736701050577,400.0,0.00013973,2]
[348658136,1736701493732,10000.0,0.00015052,2]
[348658138,1736701512747,-150.0,0.0002372,61]
[348658160,1736701832088,-452.14648614,0.00016742,2]
[348658162,1736701832098,-557.8557456,0.00016911,2]
[348658164,1736701832107,-250.0,0.00018115,2]
[348658166,1736701832116,-300.0,0.00018144,2]
[348658168,1736701832125,-24900.0,0.00018145,2]
[348658170,1736701832135,-4962.05787451,0.000189,2]
[348658172,1736701832144,-167.3558174,0.00019078,2]
[348658174,1736701832153,-925.79210452,0.00019083,2]
[348658176,1736701832162,-151.0,0.000191,2]
[348658178,1736701832171,-167.35581738,0.00019147,2]
[348658180,1736701832181,-500.0,0.00019173,2]
[348658182,1736701832190,-502.65607602,0.00019173,2]
[348658183,1736701832200,-500.0,0.00019173,2]
[348658185,1736701832209,-266.81633466,0.00019173,2]
[348658187,1736701832218,-1178.54317091,0.00019173,2]
[348658189,1736701832228,-500.0,0.00019173,2]
[348658192,1736701832238,-541.65736535,0.00019177,2]
[348658194,1736701832247,-500.0,0.00019177,2]
[348658196,1736701832256,-331.64714019,0.00019177,2]
[348658198,1736701832272,-168.35285981,0.00019177,2]
[348658200,1736701832282,-500.0,0.00019177,2]
[348658202,1736701832291,-500.0,0.00019177,2]
[348658204,1736701832300,-500.0,0.00019177,2]
[348658205,1736701832310,-500.0,0.00019177,2]
[348658206,1736701832319,-500.0,0.00019177,2]
[348658207,1736701832329,-500.0,0.00019177,2]
[348658209,1736701832339,-500.0,0.00019177,2]
[348658211,1736701832348,-500.0,0.00019177,2]
[348658213,1736701832357,-500.0,0.00019177,2]
[348658215,1736701832366,-500.0,0.00019177,2]
[348658217,1736701832375,-500.0,0.00019177,2]
[348658219,1736701832386,-500.0,0.00019177,2]
[348658221,1736701832395,-313.22894495,0.00019177,2]
[348658223,1736701832405,-500.0,0.00019177,2]
[348658225,1736701832415,-500.0,0.00019177,2]
[348658227,1736701832424,-500.0,0.00019177,2]
[348658229,1736701832433,-295.46944761,0.00019177,2]
[348658231,1736701832442,-500.0,0.00019177,2]
[348658233,1736701832451,-500.0,0.00019177,2]
[348658235,1736701832460,-500.0,0.00019177,2]
[348658236,1736701832469,-500.0,0.00019177,2]
[348658238,1736701832478,-500.56827732,0.00019177,2]
[348658240,1736701832488,-500.0,0.00019177,2]
[348658242,1736701832497,-500.0,0.00019177,2]
[348658244,1736701832507,-500.0,0.00019177,2]
[348658245,1736701832517,-500.0,0.00019177,2]
[348658247,1736701832526,-500.0,0.00019177,2]
[348658249,1736701832535,-500.0,0.00019177,2]
[348658250,1736701832545,-500.0,0.00019177,2]
[348658251,1736701832555,-500.0,0.00019177,2]
[348658253,1736701832564,-500.0,0.00019177,2]
[348658255,1736701832574,-500.0,0.00019177,2]
[348658257,1736701832583,-500.0,0.00019177,2]
[348658259,1736701832593,-500.0,0.00019177,2]
[348658262,1736701832602,-500.0,0.00019177,2]
[348658263,1736701832611,-500.0,0.00019177,2]
[348658265,1736701832621,-500.0,0.00019177,2]
[348658267,1736701832631,-500.0,0.00019177,2]
[348658269,1736701832642,-500.0,0.00019177,2]
[348658271,1736701832651,-500.0,0.00019177,2]
[348658274,1736701832661,-500.0,0.00019177,2]
[348658276,1736701832670,-500.0,0.00019177,2]
[348658278,1736701832680,-500.0,0.00019177,2]
[348658280,1736701832690,-500.0,0.00019177,2]
[348658282,1736701832699,-500.0,0.00019177,2]
[348658284,1736701832709,-500.0,0.00019177,2]
[348658286,1736701832718,-500.0,0.00019177,2]
[348658288,1736701832727,-500.0,0.00019177,2]
[348658290,1736701832736,-500.0,0.00019177,2]
[348658292,1736701832746,-500.0,0.00019177,2]
[348658294,1736701832756,-327.19023612,0.00019177,2]
[348658296,1736701832766,-500.0,0.00019177,2]
[348658298,1736701832775,-500.0,0.00019177,2]
[348658300,1736701832784,-500.0,0.00019177,2]
[348658302,1736701832794,-500.0,0.00019177,2]
[348658304,1736701832807,-500.0,0.00019177,2]
[348658306,1736701832817,-500.0,0.00019177,2]
[348658308,1736701832827,-500.0,0.00019177,2]
[348658310,1736701832837,-500.0,0.00019177,2]
[348658312,1736701832847,-460.81468421,0.00019177,2]
[348658314,1736701832860,-39.18531579,0.00019177,2]
[348658316,1736701832870,-500.0,0.00019177,2]
[348658319,1736701832879,-500.0,0.00019177,2]
[348658320,1736701832888,-500.0,0.00019177,2]
[348658322,1736701832898,-119.97751587,0.00019177,2]
[348658325,1736701832910,-309.7139885,0.00019177,2]
[348658327,1736701832921,-70.30849563,0.00019177,2]
[348658329,1736701832930,-500.0,0.00019177,2]
[348658331,1736701832940,-500.0,0.00019178,2]
[348658333,1736701832949,-500.0,0.00019178,2]
[348658335,1736701832959,-500.0,0.00019178,2]
[348658337,1736701832968,-500.0,0.00019178,2]
[348658339,1736701832977,-574.70066843,0.00019178,2]
[348658341,1736701832987,-500.0,0.00019178,2]
[348658343,1736701832996,-500.0,0.00019178,2]
[348658345,1736701833007,-500.0,0.00019178,2]
[348658361,1736701833151,-500.0,0.00019178,2]
[348658363,1736701833162,-501.93125093,0.00019178,2]
[348658365,1736701833172,-280.283849,0.00019178,2]
[348658367,1736701833181,-500.0,0.00019178,2]
[348658369,1736701833191,-500.0,0.00019178,2]
[348658371,1736701833201,-500.0,0.00019178,2]
[348658373,1736701833210,-500.0,0.00019178,2]
[348658375,1736701833219,-500.0,0.00019178,2]
[348658377,1736701833229,-500.0,0.00019178,2]
[348658379,1736701833239,-504.05782668,0.00019178,2]
[348658381,1736701833249,-500.0,0.00019178,2]
[348658383,1736701833259,-500.0,0.00019178,2]
[348658385,1736701833269,-500.0,0.00019178,2]
[348658387,1736701833278,-500.0,0.00019178,2]
[348658389,1736701833288,-500.0,0.00019178,2]
[348658391,1736701833298,-500.0,0.00019178,2]
[348658393,1736701833307,-500.0,0.00019178,2]
[348658395,1736701833317,-500.0,0.00019178,2]
[348658397,1736701833327,-500.0,0.00019178,2]
[348658399,1736701833337,-500.0,0.00019178,2]
[348658401,1736701833347,-500.0,0.00019178,2]
[348658403,1736701833356,-500.0,0.00019178,2]
[348658405,1736701833366,-500.0,0.00019178,2]
[348658407,1736701833375,-500.0,0.00019178,2]
[348658409,1736701833385,-500.0,0.00019178,2]
[348658411,1736701833395,-500.0,0.00019178,2]
[348658413,1736701833404,-197.53380634,0.00019178,2]
[348658415,1736701833414,-500.0,0.00019178,2]
[348658416,1736701833423,-417.34968837,0.00019178,2]
[348658418,1736701833433,-500.0,0.00019178,2]
[348658420,1736701833443,-500.0,0.00019178,2]
[348658423,1736701833452,-500.0,0.00019178,2]
[348658425,1736701833462,-500.0,0.00019178,2]
[348658427,1736701833472,-500.0,0.00019178,2]
[348658428,1736701833482,-500.0,0.00019178,2]
[348658430,1736701833492,-188.0,0.00019178,2]
[348658432,1736701833502,-500.0,0.00019178,2]
[348658434,1736701833512,-500.0,0.00019178,2]
[348658436,1736701833522,-500.0,0.00019178,2]
[348658438,1736701833531,-500.0,0.00019178,2]
[348658440,1736701833541,-500.0,0.00019178,2]
[348658442,1736701833551,-500.0,0.00019178,2]
[348658444,1736701833560,-500.0,0.00019178,2]
[348658446,1736701833570,-500.0,0.00019178,2]
[348658448,1736701833579,-500.0,0.00019178,2]
[348658450,1736701833588,-500.0,0.00019178,2]
[348658452,1736701833597,-500.0,0.00019178,2]
[348658454,1736701833607,-504.73887888,0.00019178,2]
[348658456,1736701833616,-565.17706756,0.00019178,2]
[348658458,1736701833626,-500.0,0.00019178,2]
[348658460,1736701833635,-500.0,0.00019178,2]
[348658462,1736701833645,-397.33101919,0.00019178,2]
[348658464,1736701833655,-500.0,0.00019178,2]
[348658466,1736701833665,-500.0,0.00019178,2]
[348658468,1736701833675,-500.0,0.00019178,2]
[348658470,1736701833684,-500.0,0.00019178,2]
[348658472,1736701833694,-500.0,0.00019178,2]
[348658474,1736701833703,-500.0,0.00019178,2]
[348658476,1736701833713,-500.0,0.00019178,2]
[348658478,1736701833723,-500.0,0.00019178,2]
[348658480,1736701833733,-500.0,0.00019178,2]
[348658482,1736701833743,-500.0,0.00019178,2]
[348658484,1736701833753,-500.0,0.00019178,2]
[348658487,1736701833764,-500.0,0.00019178,2]
[348658488,1736701833774,-500.0,0.00019178,2]
[348658491,1736701833784,-500.0,0.00019178,2]
[348658493,1736701833795,-500.0,0.00019178,2]
[348658494,1736701833808,-507.08302439,0.00019178,2]
[348658496,1736701833818,-500.0,0.00019178,2]
[348658499,1736701833827,-500.0,0.00019178,2]
[348658501,1736701833837,-500.0,0.00019178,2]
[348658502,1736701833847,-500.0,0.00019178,2]
[348658504,1736701833856,-451.5044246,0.00019178,2]
[348658510,1736701833916,-48.4955754,0.00019178,2]
[348658511,1736701833926,-500.0,0.00019178,2]
[348658512,1736701833935,-500.0,0.00019178,2]
[348658513,1736701833945,-500.0,0.00019178,2]
[348658514,1736701833954,-500.0,0.00019178,2]
[348658515,1736701833963,-500.0,0.00019178,2]
[348658516,1736701833973,-469.8528626,0.00019178,2]
[348658517,1736701833982,-505.33312627,0.00019178,2]
[348658518,1736701833992,-500.0,0.00019178,2]
[348658519,1736701834001,-500.0,0.00019178,2]
[348658520,1736701834011,-500.0,0.00019178,2]
[348658521,1736701834020,-500.0,0.00019178,2]
[348658522,1736701834030,-500.0,0.00019178,2]
[348658523,1736701834040,-353.59148735,0.00019178,2]
[348658524,1736701834049,-500.0,0.00019178,2]
[348658525,1736701834059,-500.0,0.00019178,2]
[348658526,1736701834069,-500.0,0.00019178,2]
[348658527,1736701834078,-500.0,0.00019178,2]
[348658528,1736701834087,-500.0,0.00019178,2]
[348658529,1736701834096,-500.0,0.00019178,2]
[348658530,1736701834106,-500.0,0.00019178,2]
[348658531,1736701834115,-500.0,0.00019178,2]
[348658532,1736701834124,-500.0,0.00019178,2]
[348658533,1736701834134,-500.0,0.00019178,2]
[348658534,1736701834143,-500.0,0.00019178,2]
[348658536,1736701834153,-500.0,0.00019178,2]
[348658537,1736701834163,-517.2306528,0.00019178,2]
[348658539,1736701834172,-438.89790896,0.00019178,2]
[348658541,1736701834182,-500.0,0.00019178,2]
[348658543,1736701834191,-500.0,0.00019178,2]
[348658545,1736701834201,-500.0,0.00019178,2]
[348658547,1736701834210,-500.0,0.00019178,2]
[348658549,1736701834220,-500.0,0.00019178,2]
[348658551,1736701834229,-500.0,0.00019178,2]
[348658554,1736701834239,-500.0,0.00019178,2]
[348658556,1736701834249,-500.0,0.00019178,2]
[348658558,1736701834259,-500.0,0.00019178,2]
[348658560,1736701834270,-200.0,0.00019178,2]
[348658562,1736701834280,-500.0,0.00019178,2]
[348658564,1736701834289,-500.0,0.00019178,2]
[348658566,1736701834299,-500.0,0.00019178,2]
[348658568,1736701834308,-500.0,0.00019178,2]
[348658570,1736701834318,-529.59754396,0.00019178,2]
[348658572,1736701834327,-500.0,0.00019178,2]
[348658574,1736701834336,-500.0,0.00019178,2]
[348658576,1736701834346,-500.0,0.00019178,2]
[348658578,1736701834355,-500.0,0.00019178,2]
[348658580,1736701834365,-500.0,0.00019178,2]
[348658582,1736701834375,-984.12,0.00019178,2]
[348658584,1736701834385,-500.0,0.00019178,2]
[348658586,1736701834394,-500.0,0.00019178,2]
[348658588,1736701834404,-500.0,0.00019178,2]
[348658590,1736701834414,-500.0,0.00019178,2]
[348658592,1736701834424,-500.0,0.00019178,2]
[348658594,1736701834434,-500.0,0.00019178,2]
[348658596,1736701834444,-500.0,0.00019178,2]
[348658598,1736701834454,-646.23872164,0.00019178,2]
[348658600,1736701834463,-500.0,0.00019178,2]
[348658602,1736701834472,-500.0,0.00019178,2]
[348658604,1736701834482,-500.0,0.00019178,2]
[348658606,1736701834492,-500.0,0.00019178,2]
[348658608,1736701834502,-500.0,0.00019178,2]
[348658610,1736701834513,-500.0,0.00019178,2]
[348658612,1736701834523,-500.0,0.00019178,2]
[348658614,1736701834534,-500.0,0.00019178,2]
[348658616,1736701834543,-500.0,0.00019178,2]
[348658618,1736701834553,-500.0,0.00019178,2]
[348658620,1736701834563,-500.0,0.00019178,2]
[348658622,1736701834573,-500.0,0.00019178,2]
[348658624,1736701834582,-500.0,0.00019178,2]
[348658626,1736701834592,-500.0,0.00019178,2]
[348658628,1736701834601,-500.0,0.00019178,2]
[348658630,1736701834610,-500.0,0.00019178,2]
[348658632,1736701834619,-500.0,0.00019178,2]
[348658634,1736701834629,-500.0,0.00019178,2]
[348658636,1736701834639,-500.0,0.00019178,2]
[348658638,1736701834649,-500.0,0.00019178,2]
[348658640,1736701834658,-500.0,0.00019178,2]
[348658642,1736701834668,-500.0,0.00019178,2]
[348658644,1736701834677,-500.0,0.00019178,2]
[348658646,1736701834687,-500.0,0.00019178,2]
[348658648,1736701834696,-500.0,0.00019178,2]
[348658650,1736701834705,-500.0,0.00019178,2]
[348658652,1736701834716,-500.0,0.00019178,2]
[348658655,1736701834725,-500.0,0.00019178,2]
[348658657,1736701834736,-593.5643512,0.00019178,2]
[348658659,1736701834746,-500.0,0.00019178,2]
[348658661,1736701834756,-500.0,0.00019178,2]
[348658663,1736701834766,-367.84836339,0.00019178,2]
[348658665,1736701834776,-500.0,0.00019178,2]
[348658667,1736701834786,-500.0,0.00019178,2]
[348658669,1736701834796,-500.0,0.00019178,2]
[348658671,1736701834810,-500.0,0.00019178,2]
[348658673,1736701834820,-500.0,0.00019178,2]
[348658675,1736701834829,-455.43224117,0.00019178,2]
[348658677,1736701834839,-500.0,0.00019178,2]
[348658679,1736701834850,-500.0,0.00019178,2]
[348658681,1736701834859,-500.0,0.00019178,2]
[348658683,1736701834869,-500.0,0.00019178,2]
[348658685,1736701834879,-500.0,0.00019178,2]
[348658687,1736701834889,-500.0,0.00019178,2]
[348658689,1736701834898,-500.0,0.00019178,2]
[348658691,1736701834907,-500.0,0.00019178,2]
[348658693,1736701834917,-500.0,0.00019178,2]
[348658695,1736701834927,-500.0,0.00019178,2]
[348658697,1736701834936,-500.0,0.00019178,2]
[348658699,1736701834945,-500.0,0.00019178,2]
[348658701,1736701834955,-500.0,0.00019178,2]
[348658703,1736701834964,-500.0,0.00019178,2]
[348658705,1736701834973,-500.0,0.00019178,2]
[348658707,1736701834983,-500.0,0.00019178,2]
[348658709,1736701834992,-500.0,0.00019178,2]
[348658711,1736701835001,-500.0,0.00019178,2]
[348658713,1736701835013,-500.0,0.00019178,2]
[348658716,1736701835022,-500.0,0.00019178,2]
[348658718,1736701835032,-500.0,0.00019178,2]
[348658719,1736701835041,-500.0,0.00019178,2]
[348658722,1736701835051,-500.0,0.00019178,2]
[348658724,1736701835063,-500.0,0.00019178,2]